bitfinex-derivatives/quotes_ETHF0:USTF0_20241018
["timestamp","ask_amount","ask_price","bid_price","bid_amount"]
[1729244130524,0.38111,2624.6,2624.3,0.5393]
[1729244131028,2.97,2624.8,2624.3,0.92044]
[1729244131029,0.3811,2624.7,2624.3,0.92044]
[1729244131222,0.38108,2624.8,2624.5,0.38111]
[1729244131417,1.16,2624.9,2624.6,1.1053]
[1729244131634,0.38106,2624.9,2624.6,1.4864]
[1729244131922,4.13,2625.2,2624.6,1.1053]
[1729244132125,0.38102,2625.2,2624.9,0.38106]
[1729244132437,4.3678,2625.3,2625.0,0.90194]
[1729244132632,3.2078,2625.3,2625.1,1.0765]
[1729244132933,3.2078,2625.3,2625.1,1.45752]
[1729244133126,3.58881,2625.3,2625.1,1.0765]
[1729244133534,3.2078,2625.3,2625.1,1.0765]
[1729244134635,3.2078,2625.3,2625.2,3.8096]
[1729244134830,3.2078,2625.3,2625.2,4.19061]
[1729244135026,3.2078,2625.3,2625.2,10.19061]
[1729244136035,3.58875,2625.7,2625.4,0.38098]
[1729244136239,3.58875,2625.7,2625.5,0.5368]
[1729244136534,1.16,2625.9,2625.5,1.0468]
[1729244136737,0.38093,2625.8,2625.5,1.0468]
[1729244137032,6.1778,2626.0,2625.6,0.5062]
[1729244137033,7.7187,2626.0,2625.6,0.5062]
[1729244137338,3.3509,2626.0,2625.6,0.5062]
[1729244137535,2.97,2626.0,2625.6,0.5062]
[1729244137728,0.38089,2626.1,2625.7,0.38094]
[1729244138038,13.666,2626.2,2625.6,0.5062]
[1729244138039,2.97,2626.2,2625.6,0.5062]
[1729244138228,3.2078,2626.3,2625.6,0.5062]
[1729244138422,3.58867,2626.3,2625.7,0.38094]
[1729244138628,0.38089,2626.1,2625.7,0.38094]
[1729244139024,0.38088,2626.2,2625.7,0.38093]
[1729244139231,0.38088,2626.2,2625.6,0.5062]
[1729244139232,0.38088,2626.2,2625.8,0.38091]
[1729244139534,0.38087,2626.2,2625.7,0.38093]
[1729244139740,0.38088,2626.2,2625.8,0.38092]
[1729244140732,6.1778,2626.3,2625.6,0.5062]
[1729244140935,6.55866,2626.3,2625.9,0.38091]
[1729244141239,3.58866,2626.3,2626.0,1.0575]
[1729244141431,3.58866,2626.3,2626.1,0.5085]
[1729244141832,0.38087,2626.2,2626.1,0.5085]
[1729244142438,3.7292,2626.6,2626.1,0.5085]
[1729244142635,3.7292,2626.6,2626.1,0.88938]
[1729244142934,3.7292,2626.6,2626.1,0.5085]
[1729244143139,0.38085,2626.4,2626.1,0.5085]
[1729244144641,0.38083,2626.5,2626.1,0.88937]
[1729244145138,3.2078,2626.6,2626.3,0.38085]
[1729244145340,3.58862,2626.6,2626.2,0.38086]
[1729244145640,3.58862,2626.6,2626.2,0.38087]
[1729244145844,0.38083,2626.5,2626.2,0.38087]
[1729244146045,0.38083,2626.5,2626.1,3.85937]
[1729244146244,3.58862,2626.6,2626.2,0.38086]
[1729244146439,3.2078,2626.6,2626.1,0.5085]
[1729244146641,0.38085,2626.4,2626.1,0.5085]
[1729244147139,0.5196,2626.5,2626.1,0.5085]
[1729244147339,0.38084,2626.4,2626.1,0.88938]
[1729244147540,0.90043,2626.5,2626.1,0.88938]
[1729244147845,0.38084,2626.5,2626.1,0.88938]
[1729244148041,0.38084,2626.4,2626.1,0.88938]
[1729244148351,0.38083,2626.5,2626.1,0.88938]
[1729244149046,3.2078,2626.6,2626.1,0.88938]
[1729244149247,0.38084,2626.4,2626.1,0.88938]
[1729244149644,0.38084,2626.4,2626.2,0.38087]
[1729244150040,0.38084,2626.4,2626.1,0.88937]
[1729244150442,0.38084,2626.4,2626.2,0.38087]
[1729244150756,0.38084,2626.4,2626.1,0.88937]
[1729244152851,3.7296,2626.7,2626.1,0.5085]
[1729244153048,6.6996,2626.7,2626.1,0.5085]
[1729244153350,0.38088,2626.1,2626.0,3.7308]
[1729244153536,6.1778,2626.3,2625.7,1.0649]
[1729244153742,0.38091,2625.9,2625.8,0.5365]
[1729244155541,0.38091,2625.9,2625.8,0.91742]
[1729244155743,0.38091,2626.0,2625.8,0.91742]
[1729244156750,0.38088,2626.1,2625.8,0.91742]
[1729244156953,0.38091,2626.0,2625.9,0.38091]
[1729244157150,0.38091,2626.0,2625.8,0.5365]
[1729244157151,0.38091,2626.0,2625.8,0.91741]
[1729244157450,0.38091,2626.0,2625.8,0.5365]
[1729244157645,0.38091,2626.0,2625.8,0.91741]
[1729244157853,0.38091,2626.0,2625.8,0.5365]
[1729244158153,0.95213,2626.4,2625.9,0.38091]
[1729244158449,0.95213,2626.4,2625.8,0.5365]
[1729244158753,0.38089,2626.1,2626.0,0.38089]
[1729244158951,3.7525,2626.5,2626.1,0.38088]
[1729244159150,0.38085,2626.3,2626.2,0.5423]
[1729244159351,0.38085,2626.3,2626.2,1.0518]
[1729244160145,3.2078,2626.5,2626.2,4.8598]
[1729244160352,0.5293,2626.8,2626.3,0.5108]
[1729244160653,0.3808,2626.7,2626.4,0.38083]
[1729244160851,0.3808,2626.7,2626.3,6.6886]
[1729244161060,0.3808,2626.7,2626.5,0.38082]
[1729244161448,0.38077,2626.9,2626.6,0.89031]
[1729244161652,0.38078,2626.9,2626.7,0.5423]
[1729244162654,0.5214,2627.0,2626.7,0.5423]
[1729244162855,0.90216,2627.0,2626.7,0.5423]
[1729244163064,0.90216,2627.0,2626.8,0.5077]
[1729244163467,0.38074,2627.1,2626.8,0.88847]
[1729244163659,0.38075,2627.1,2626.8,0.5077]
[1729244163861,1.1,2627.3,2626.8,0.5077]
[1729244164057,0.38075,2627.1,2626.8,0.5077]
[1729244164371,0.38075,2627.1,2626.8,0.88848]
[1729244164867,0.38075,2627.1,2626.8,0.5077]
[1729244165166,0.38075,2627.1,2626.8,0.88848]
[1729244165599,4.07,2627.3,2626.8,0.5077]
[1729244165791,0.38077,2626.9,2626.8,0.5077]
[1729244168092,0.5406,2627.0,2626.8,0.5077]
[1729244168704,0.92136,2627.0,2626.8,0.5077]
[1729244169705,0.38077,2626.9,2626.8,0.32890981]
[1729244170398,4.26161147,2627.3,2626.8,0.32890981]
[1729244170607,0.38076,2627.0,2626.8,0.32890981]
[1729244170899,0.38075,2627.1,2626.8,0.32890981]
[1729244171104,0.38076,2627.0,2626.8,0.32890981]
[1729244171505,0.38075,2627.1,2626.8,0.70968981]
[1729244172193,0.38075,2627.1,2626.6,4.88305508]
[1729244172392,0.38075,2627.1,2626.7,0.38078]
[1729244173092,0.38075,2627.0,2626.7,0.38078]
[1729244173288,45.395,2627.3,2626.7,0.38078]
[1729244173594,0.38075,2627.1,2626.7,0.38079]
[1729244173791,0.38076,2627.0,2626.7,0.38079]
[1729244173998,0.38075,2627.1,2626.8,0.38078]
[1729244174492,0.38075,2627.1,2626.7,0.38078]
[1729244174698,0.38075,2627.1,2626.6,4.88305508]
[1729244174943,0.38075,2627.1,2626.8,0.38078]
[1729244175536,41.70571,2627.3,2627.0,3.35075]
[1729244175789,41.70572,2627.3,2627.1,0.5112]
[1729244175893,0.90572,2627.3,2627.1,0.5112]
[1729244176999,0.90572,2627.3,2627.2,0.5087]
[1729244177196,0.525,2627.3,2627.2,0.5087]
[1729244177405,3.2078,2627.4,2627.2,1.0498]
[1729244177599,3.5885,2627.4,2627.2,1.0498]
[1729244177943,3.2078,2627.4,2627.2,1.0498]
[1729244178206,3.58851,2627.4,2627.2,1.0498]
[1729244178502,0.38069,2627.5,2627.2,4.40052]
[1729244178710,0.5086,2627.8,2627.5,0.38067]
[1729244178903,4.10553,2627.9,2627.6,3.479]
[1729244178904,3.7249,2627.9,2627.6,3.479]
[1729244179101,3.7249,2627.9,2627.7,1.0919]
[1729244179609,0.38064,2627.8,2627.7,1.0919]
[1729244179796,0.38069,2627.4,2627.3,1.0919]
[1729244180104,3.58849,2627.4,2627.3,1.0919]
[1729244180367,0.38069,2627.4,2627.3,1.0919]
[1729244180904,0.38069,2627.4,2627.3,0.5508]
[1729244182210,0.5349,2627.5,2627.3,0.5508]
[1729244182407,0.91559,2627.5,2627.3,0.5508]
[1729244182605,0.525,2627.6,2627.4,0.5202]
[1729244182815,0.90567,2627.6,2627.4,0.5202]
[1729244183210,0.38067,2627.6,2627.4,0.5202]
[1729244183405,0.38067,2627.6,2627.5,0.5037]
[1729244184607,3.2078,2627.7,2627.5,0.5037]
[1729244184810,0.38066,2627.7,2627.5,0.5037]
[1729244185805,0.5349,2627.8,2627.5,0.5037]
[1729244186120,0.38067,2627.6,2627.5,0.5037]
[1729244187612,0.38069,2627.5,2627.2,2.29633426]
[1729244188101,0.38069,2627.4,2627.2,2.29633426]
[1729244188408,0.38069,2627.4,2627.2,1.91561426]
[1729244188610,3.2078,2627.7,2627.1,3.2078]
[1729244188611,0.38072,2627.2,2627.1,3.2078]
[1729244188801,3.5019,2627.3,2626.4,3.2078]
[1729244189002,4.15965,2627.1,2626.5,0.38081]
[1729244189208,0.3808,2626.7,2626.5,0.38081]
[1729244189504,0.38079,2626.8,2626.6,0.3808]
[1729244190291,3.2078,2627.1,2626.4,6.1778]
[1729244190496,0.3808,2626.7,2626.5,0.38082]
[1729244190892,0.3808,2626.7,2626.6,1.5704]
[1729244191294,0.38088,2626.2,2626.0,3.58869]
[1729244191496,3.2078,2626.8,2626.1,2.97]
[1729244191497,1.0802,2626.6,2626.1,2.97]
[1729244191686,1.0802,2626.6,2626.1,3.35088]
[1729244191687,0.38086,2626.3,2626.1,3.35088]
[1729244192998,1.0802,2626.6,2626.1,2.97]
[1729244193291,0.38087,2626.2,2626.1,3.35088]
[1729244193491,0.38087,2626.2,2626.1,2.97]
[1729244195976,0.38088,2626.1,2626.0,4.2677]
[1729244196176,0.95213,2626.4,2625.7,2.97]
[1729244196375,3.2078,2626.2,2625.7,2.97]
[1729244196576,0.38093,2625.8,2625.7,2.97]
[1729244196878,0.38092,2625.9,2625.7,3.35094]
[1729244197280,0.38092,2625.9,2625.8,0.5145]
[1729244198779,0.5247,2626.0,2625.8,0.89543]
[1729244198780,0.90561,2626.0,2625.8,0.89543]
[1729244198982,0.90561,2626.0,2625.9,2.97]
[1729244199184,0.38091,2626.0,2625.9,2.97]
[1729244199382,0.38091,2626.0,2625.9,3.5292]
[1729244200077,0.90979,2626.1,2625.9,3.5292]
[1729244201787,0.90978,2626.1,2625.9,3.5292]
[1729244202487,0.5289,2626.1,2625.9,3.5292]
[1729244202680,0.5289,2626.1,2625.9,4.0666]
[1729244205888,0.90978,2626.1,2625.9,4.0666]
[1729244206490,0.3809,2626.0,2625.9,1.0966]
[1729244206691,0.3809,2626.0,2625.9,0.5592]
[1729244207190,0.9178,2626.0,2625.9,0.5592]
[1729244207382,0.5369,2626.0,2625.9,0.5592]
[1729244209592,0.90979,2626.1,2625.9,0.5592]
[1729244211093,0.5289,2626.1,2625.9,0.9401]
[1729244211294,0.90979,2626.1,2625.9,0.5592]
[1729244213702,0.5289,2626.1,2625.9,0.94011]
[1729244215004,0.90979,2626.1,2625.9,0.94011]
[1729244215493,0.90979,2626.1,2625.9,0.5592]
[1729244215693,0.5289,2626.1,2625.9,0.9401]
[1729244215889,0.5289,2626.1,2625.9,0.5592]
[1729244216102,0.90979,2626.1,2625.9,0.5592]
[1729244216692,0.90979,2626.1,2625.9,3.91011]
[1729244217805,0.5289,2626.1,2625.9,3.91011]
[1729244218102,0.3809,2626.0,2625.9,3.91011]
[1729244219210,0.3809,2626.0,2625.9,3.5292]
[1729244219496,0.3809,2626.0,2625.9,3.91011]
[1729244220598,3.2078,2626.3,2625.9,3.5292]
[1729244220792,0.5377,2626.5,2626.1,2.97]
[1729244220989,0.38085,2626.4,2626.3,0.38084]
[1729244221702,0.38084,2626.5,2626.2,1.0949]
[1729244221898,0.5219,2626.7,2626.4,2.74]
[1729244222101,0.9027,2626.7,2626.6,1.75081]
[1729244222298,3.7455,2626.8,2626.7,0.3808]
[1729244222505,3.2078,2626.8,2626.7,1.7508]
[1729244223091,3.2078,2626.8,2626.7,2.3211]
[1729244223901,3.2078,2626.8,2626.7,3.9211]
[1729244224298,3.58858,2626.8,2626.7,3.5403]
[1729244224500,3.2078,2626.8,2626.7,3.5403]
[1729244224706,3.2078,2626.8,2626.7,3.9211]
[1729244225507,0.38078,2626.9,2626.7,3.9211]
[1729244227906,0.5219,2627.0,2626.7,3.5403]
[1729244228114,0.5219,2627.0,2626.8,0.38078]
[1729244228296,0.90265,2627.0,2626.8,0.38078]
[1729244228604,0.90265,2627.0,2626.7,3.5403]
[1729244228795,0.90265,2627.0,2626.7,3.92109]
[1729244229193,0.38077,2626.9,2626.7,3.92109]
[1729244229906,0.5219,2627.0,2626.7,3.92109]
[1729244230207,0.90266,2627.0,2626.7,3.92109]
[1729244230406,0.90265,2627.0,2626.8,0.38078]
[1729244230599,0.5219,2627.0,2626.8,0.38078]
[1729244231107,0.5219,2627.0,2626.9,3.35077]
[1729244234012,10.3283,2627.0,2626.6,0.5246]
[1729244234310,0.38085,2626.4,2626.1,2.06297]
[1729244234499,0.5622,2626.3,2626.1,1.6821]
[1729244234701,0.5622,2626.3,2626.1,2.06297]
[1729244235008,0.5622,2626.3,2626.2,0.38087]
[1729244235208,0.5622,2626.3,2626.2,3.35087]
[1729244235404,0.94305,2626.3,2626.2,3.35087]
[1729244235909,0.94305,2626.3,2626.2,2.97]
[1729244237605,0.94305,2626.3,2626.2,3.35087]
[1729244238610,0.5622,2626.3,2626.2,3.35087]
[1729244240001,0.94305,2626.3,2626.2,2.97]
[1729244240209,0.38087,2626.2,2626.1,1.6821]
[1729244240412,3.58867,2626.2,2626.1,1.6821]
[1729244242511,0.38089,2626.1,2625.7,2.97]
[1729244242707,3.58868,2626.2,2625.9,0.3809]
[1729244243307,0.38088,2626.2,2625.9,0.3809]
[1729244244114,0.38088,2626.2,2626.0,0.3809]
[1729244244622,4.51983182,2626.4,2626.0,0.3809]
[1729244244816,0.38086,2626.3,2626.0,0.3809]
[1729244246821,0.38087,2626.2,2626.0,0.3809]
[1729244247510,4.51983182,2626.4,2626.0,0.3809]
[1729244247718,4.2478,2626.4,2625.9,2.97]
[1729244248111,0.38078,2626.9,2626.4,0.38084]
[1729244248420,4.1596,2627.3,2626.5,3.2078]
[1729244248608,0.38081,2626.6,2626.3,0.38085]
[1729244248808,0.38081,2626.6,2626.2,2.97]
[1729244249018,7.2178,2627.0,2626.2,3.35086]
[1729244249418,8.16971,2627.0,2626.2,3.35086]
[1729244249619,0.38081,2626.7,2626.3,0.38084]
[1729244249810,1.75081,2626.7,2626.5,1.37]
[1729244251912,0.38081,2626.7,2626.4,0.38084]
[1729244252113,3.2078,2626.8,2626.2,6.1778]
[1729244252313,3.2078,2626.8,2626.4,2.97]
[1729244252609,1.0607,2626.7,2626.5,0.38081]
[1729244254017,1.0607,2626.7,2626.4,2.97]
[1729244254217,1.0607,2626.7,2626.5,0.38082]
[1729244256728,1.4415,2626.7,2626.5,0.38082]
[1729244258828,1.4415,2626.7,2626.4,2.97]
[1729244258829,1.4415,2626.7,2626.4,3.35083]
[1729244259020,1.4415,2626.7,2626.5,0.38082]
[1729244261125,1.0607,2626.7,2626.5,0.38082]
[1729244261310,1.4415,2626.7,2626.5,0.38082]
[1729244263716,1.0607,2626.7,2626.3,1.6682]
[1729244263923,1.44151,2626.7,2626.4,0.38083]
[1729244264114,0.38081,2626.6,2626.4,0.38083]
[1729244265015,1.0607,2626.7,2626.3,1.6682]
[1729244265211,1.0607,2626.7,2626.2,6.1778]
[1729244265415,4.2685,2626.7,2626.2,3.2078]
[1729244265615,4.2685,2626.7,2626.2,3.58866]
[1729244265616,0.38085,2626.3,2626.2,3.58866]
[1729244266418,0.38085,2626.3,2626.2,3.2078]
[1729244266726,4.2685,2626.7,2625.9,4.5773]
[1729244266727,5.22052,2626.7,2626.1,0.38087]
[1729244266916,0.92497,2626.2,2626.1,0.38088]
[1729244268013,0.5441,2626.2,2626.1,0.38088]
[1729244268412,1.0878,2626.2,2626.1,0.38088]
[1729244269724,1.0878,2626.2,2626.1,3.35088]
[1729244273529,0.5437,2626.2,2626.1,3.35088]
[1729244273726,3.2078,2627.0,2626.1,12.778]
[1729244273924,0.5268,2626.9,2626.8,0.38077]
[1729244274128,0.90757,2626.9,2626.8,1.37]
[1729244274517,0.5268,2626.9,2626.8,1.37]
[1729244274717,0.5268,2626.9,2626.8,1.75078]
[1729244275321,0.90757,2626.9,2626.8,1.37]
[1729244275520,0.5268,2626.9,2626.8,1.37]
[1729244278126,0.95196,2626.8,2625.7,3.2078]
[1729244278332,1.37,2626.3,2626.2,1.75087]
[1729244278534,1.75084,2626.4,2626.2,1.75087]
[1729244278735,0.574,2626.3,2626.2,0.38087]
[1729244278931,0.574,2626.3,2626.2,1.75087]
[1729244279322,0.574,2626.3,2626.2,1.37]
[1729244279830,1.1407,2626.3,2626.2,1.37]
[1729244280229,1.1407,2626.3,2626.2,1.75087]
[1729244280630,1.1407,2626.3,2626.2,1.37]
[1729244282036,1.1407,2626.3,2626.2,1.75087]
[1729244284138,1.52155,2626.3,2626.2,1.37]
[1729244284338,1.1407,2626.3,2626.2,1.75087]
[1729244285225,1.37,2626.6,2626.2,1.75087]
[1729244285226,3.7788,2626.7,2626.2,1.37]
[1729244285435,3.7788,2626.7,2626.4,0.38084]
[1729244285436,0.5478,2626.5,2626.4,0.38084]
[1729244285841,0.5478,2626.5,2626.4,0.91674]
[1729244286341,0.5478,2626.5,2626.4,2.28674]
[1729244286533,2.8933,2626.7,2626.4,2.28674]
[1729244286534,0.3808,2626.7,2626.4,1.9059]
[1729244286741,1.7508,2626.7,2626.6,1.37]
[1729244287038,0.38079,2626.8,2626.6,1.7508]
[1729244287242,0.5589,2626.9,2626.8,1.37]
[1729244287445,0.5589,2626.9,2626.6,1.37]
[1729244287446,1.9289,2626.9,2626.6,1.37]
[1729244287643,1.9289,2626.9,2626.6,1.75081]
[1729244287644,1.37,2626.7,2626.6,1.75081]
[1729244287944,1.37,2626.8,2626.6,1.37]
[1729244288239,1.37,2626.8,2626.7,1.7508]
[1729244288748,0.93967,2626.9,2626.7,1.75079]
[1729244288939,2.30967,2626.9,2626.7,1.75079]
[1729244289443,1.9289,2626.9,2626.7,1.75079]
[1729244289846,2.30967,2626.9,2626.7,1.75079]
[1729244292656,1.9289,2626.9,2626.8,1.37]
[1729244293144,0.5589,2626.9,2626.8,1.75078]
[1729244293833,3.7779,2627.0,2626.8,11.1772]
[1729244294144,0.5642,2627.1,2627.0,0.38075]
[1729244294452,0.5642,2627.1,2627.0,2.31045]
[1729244297545,0.5642,2627.1,2627.0,1.9297]
[1729244297745,2.31494,2627.1,2627.0,0.5597]
[1729244299453,0.38075,2627.0,2626.9,1.37]
[1729244300640,1.75075,2627.1,2626.9,1.37]
[1729244300840,1.37,2627.1,2626.9,1.37]
[1729244301760,0.38075,2627.0,2626.9,1.37]
[1729244302162,1.37,2627.1,2626.9,1.37]
[1729244302364,1.37,2627.2,2627.0,1.37]
[1729244302562,1.75073,2627.2,2627.0,1.75075]
[1729244304863,1.37,2627.2,2627.0,1.75075]
[1729244305163,3.2078,2627.3,2627.1,1.37]
[1729244305360,3.2078,2627.3,2627.2,1.75072]
[1729244305867,3.2078,2627.3,2627.2,1.37]
[1729244307063,3.58851,2627.3,2627.2,1.37]
[1729244307365,4.95851,2627.3,2627.2,1.37]
[1729244307560,4.95851,2627.3,2627.1,0.38073]
[1729244308870,1.37,2627.2,2627.1,0.38073]
[1729244309070,1.37,2627.2,2627.0,1.37]
[1729244309256,1.37,2627.2,2627.1,0.38074]
[1729244309767,1.75073,2627.2,2627.0,1.75074]
[1729244309963,1.75073,2627.2,2627.1,0.38074]
[1729244310872,0.38075,2627.1,2626.9,0.38076]
[1729244311068,1.37,2627.0,2626.9,1.75077]
[1729244311461,1.37,2627.0,2626.5,3.2078]
[1729244311664,1.37,2626.6,2626.5,0.38082]
[1729244311958,1.37,2626.6,2626.5,1.37]
[1729244311959,0.38081,2626.6,2626.5,1.37]
[1729244312167,0.3808,2626.7,2626.6,0.38081]
[1729244312375,0.3808,2626.7,2626.6,1.75081]
[1729244313272,0.3808,2626.7,2626.6,0.38081]
[1729244313481,0.38081,2626.6,2626.5,1.75082]
[1729244315472,0.91261,2626.6,2626.5,1.37]
[1729244316178,0.91261,2626.6,2626.4,1.6511]
[1729244316179,0.38083,2626.5,2626.4,1.6511]
[1729244316478,0.38083,2626.5,2626.4,3.40193]
[1729244316781,0.91262,2626.6,2626.5,0.38083]
[1729244316981,0.91262,2626.6,2626.5,1.75083]
[1729244317773,0.5318,2626.6,2626.5,1.75083]
[1729244317978,1.75081,2626.7,2626.6,0.38081]
[1729244318281,0.38081,2626.7,2626.6,1.75081]
[1729244319879,0.38078,2626.8,2626.7,0.38079]
[1729244320079,0.38078,2626.8,2626.7,1.7508]
[1729244320275,1.37,2626.8,2626.5,1.37]
[1729244320476,1.9455,2626.7,2626.5,1.75081]
[1729244320677,1.9455,2626.7,2626.5,1.37]
[1729244320982,0.9563,2626.7,2626.6,0.38081]
[1729244323080,0.5755,2626.7,2626.6,1.75081]
[1729244323382,0.38078,2626.9,2626.7,0.38079]
[1729244323571,0.38078,2626.9,2626.8,0.5484]
[1729244323774,0.38078,2626.9,2626.8,1.1099]
[1729244325386,1.37,2627.0,2626.8,2.86067]
[1729244325583,1.37,2627.0,2626.9,0.5808]
[1729244325780,1.75075,2627.0,2626.9,0.5808]
[1729244326286,1.37,2627.0,2626.9,0.5808]
[1729244326786,1.75075,2627.0,2626.9,0.5808]
[1729244327283,5.1764,2627.0,2626.4,3.2078]
[1729244327584,1.37,2626.6,2626.5,1.53882]
[1729244327777,1.37,2626.7,2626.5,1.158]
[1729244327979,1.9743,2626.7,2626.6,0.38081]
[1729244328690,0.6043,2626.7,2626.6,0.38081]
[1729244329480,0.9851,2626.7,2626.6,0.38081]
[1729244329788,0.9851,2626.7,2626.6,1.75081]
[1729244330090,2.3551,2626.7,2626.6,1.37]
[1729244330286,2.9419,2626.7,2626.6,1.37]
[1729244336086,2.9419,2626.7,2626.6,1.75081]
[1729244336587,2.9419,2626.7,2626.6,1.37]
[1729244338282,1.1911,2626.7,2626.6,1.75081]
[1729244338689,1.5719,2626.7,2626.6,1.75081]
[1729244339289,1.1911,2626.7,2626.6,1.75081]
[1729244339495,1.5719,2626.7,2626.6,1.75081]
[1729244339892,0.6043,2626.7,2626.6,1.75081]
[1729244340092,0.9851,2626.7,2626.6,1.75081]
[1729244340289,0.38079,2626.8,2626.6,1.75081]
[1729244340796,0.38079,2626.8,2626.7,0.5759]
[1729244341184,0.3808,2626.7,2626.6,1.37]
[1729244341894,1.9529,2626.9,2626.6,1.37]
[1729244342195,0.38079,2626.8,2626.6,1.75081]
[1729244342382,1.9529,2626.9,2626.6,1.75081]
[1729244342586,1.9529,2626.9,2626.6,2.35421]
[1729244342898,0.38079,2626.8,2626.6,2.35421]
[1729244343193,0.3808,2626.7,2626.6,1.9734]
[1729244343399,0.3808,2626.7,2626.6,0.6034]
[1729244344288,0.3808,2626.7,2626.6,0.98421]
[1729244345491,0.3808,2626.7,2626.6,0.6034]
[1729244350303,0.38084,2626.4,2626.2,0.99534]
[1729244350501,0.5913,2626.6,2626.3,1.9357]
[1729244350690,3.2078,2627.1,2626.6,1.37]
[1729244350895,0.38077,2626.9,2626.8,1.37]
[1729244351300,1.37,2627.0,2626.8,1.37]
[1729244351492,0.38077,2626.9,2626.8,1.37]
[1729244352003,1.75077,2626.9,2626.7,3.43579]
[1729244355395,0.38076,2627.0,2626.8,1.37]
[1729244355605,0.38075,2627.0,2626.9,1.37]
[1729244355903,1.75075,2627.0,2626.9,1.37]
[1729244356197,3.2078,2627.1,2626.9,1.37]
[1729244356499,1.75075,2627.1,2627.0,1.37]
[1729244356697,1.37,2627.1,2626.9,1.37]
[1729244357003,0.38075,2627.0,2626.9,1.37]
[1729244357604,1.75075,2627.0,2626.9,1.37]
[1729244358405,1.75075,2627.0,2626.9,1.75077]
[1729244358903,1.75075,2627.0,2626.9,1.37]
[1729244359101,0.38075,2627.0,2626.9,1.37]
[1729244359300,1.75075,2627.0,2626.9,1.37]
[1729244359498,1.75075,2627.0,2626.9,1.75077]
[1729244360090,1.75075,2627.0,2626.9,1.37]
[1729244360798,1.75075,2627.0,2626.9,1.75077]
[1729244361103,1.75075,2627.0,2626.8,1.75077]
[1729244361305,0.38077,2626.9,2626.8,1.75077]
[1729244361502,1.37,2627.0,2626.8,1.37]
[1729244361700,1.37,2627.0,2626.9,0.38077]
[1729244361701,1.75076,2627.0,2626.9,0.38077]
[1729244362402,1.75076,2627.0,2626.8,1.37]
[1729244362597,1.75076,2627.0,2626.9,0.38077]
[1729244362993,1.75076,2627.0,2626.9,1.75077]
[1729244366108,0.38076,2627.0,2626.9,1.75077]
[1729244366298,1.1472,2627.2,2626.9,1.37]
[1729244366299,0.38075,2627.1,2626.9,1.37]
[1729244366502,1.9259,2627.2,2626.9,1.75076]
[1729244366503,0.38075,2627.0,2626.9,1.75076]
[1729244366805,1.9259,2627.2,2627.0,0.38075]
[1729244366806,0.38075,2627.1,2627.0,0.38075]
[1729244367008,0.38075,2627.0,2626.9,1.75076]
[1729244369101,1.37,2627.1,2626.9,1.75076]
[1729244369306,1.75075,2627.1,2626.9,1.75076]
[1729244369507,0.38075,2627.0,2626.9,1.75076]
[1729244371300,1.37,2627.1,2626.9,1.75076]
[1729244371501,0.38075,2627.0,2626.9,1.75076]
[1729244373510,1.75075,2627.1,2627.0,0.38075]
[1729244373911,1.75075,2627.1,2626.9,1.37]
[1729244374117,1.75075,2627.1,2626.9,1.75076]
[1729244374416,0.38075,2627.0,2626.9,1.75076]
[1729244375115,2.33676,2627.0,2626.9,0.38077]
[1729244376617,0.96676,2627.0,2626.9,1.37]
[1729244376816,2.33675,2627.0,2626.9,1.37]
[1729244377319,0.38077,2626.9,2626.8,1.75078]
[1729244377810,0.38077,2626.9,2626.8,1.37]
[1729244378012,2.34097,2626.9,2626.8,1.37]
[1729244379718,0.3808,2626.7,2626.6,4.9586]
[1729244380920,0.3808,2626.7,2626.6,1.7508]
[1729244381120,0.3808,2626.7,2626.6,4.9586]
[1729244382214,0.38079,2626.8,2626.7,0.38079]
[1729244382420,0.38079,2626.8,2626.7,1.75079]
[1729244382921,0.38079,2626.8,2626.7,1.9465]
[1729244383320,0.38079,2626.8,2626.7,2.3273]
[1729244383822,1.75079,2626.8,2626.7,0.5765]
[1729244384019,1.37,2626.8,2626.6,5.95395]
[1729244384217,0.38083,2626.5,2626.4,0.99534]
[1729244384420,1.37,2626.5,2626.3,0.99534]
[1729244384616,1.1411,2626.7,2626.2,3.2078]
[1729244384617,0.38085,2626.3,2626.2,3.2078]
[1729244384920,1.75085,2626.3,2626.2,3.2078]
[1729244385120,2.90635,2626.3,2626.2,3.2078]
[1729244387427,2.90635,2626.3,2626.0,1.37]
[1729244387428,0.38088,2626.1,2626.0,1.37]
[1729244387613,0.38088,2626.1,2626.0,1.7509]
[1729244388031,0.38088,2626.1,2626.0,1.37]
[1729244388330,0.3809,2626.0,2625.9,5.7321]
[1729244388528,2.3096,2626.0,2625.9,5.7321]
[1729244388914,2.3096,2626.0,2625.9,3.2078]
[1729244389426,0.38093,2625.8,2625.7,1.1404]
[1729244389629,0.38093,2625.8,2625.7,2.5104]
[1729244397122,0.38093,2625.8,2625.7,2.89134]
[1729244398830,1.75091,2625.9,2625.8,0.38093]
[1729244399027,1.75091,2625.9,2625.8,2.30913]
[1729244399425,1.75091,2625.9,2625.8,1.9282]
[1729244399625,1.75091,2625.9,2625.8,2.30913]
[1729244400527,1.37,2625.9,2625.8,2.30913]